Department Family,Entity,Date,Expense Type,Expense Area,Supplier,Transaction Number,Amount
DOH,London Ambulance Service NHS Trust,02/11/2012,3rd Party - Other Costs,Olympics Pre-Planned Aid,Great Western Ambulance Service Nhs Trus,138,36299.27
DOH,London Ambulance Service NHS Trust,02/11/2012,3rd Party - Other Costs,Olympics Pre-Planned Aid,North East Ambulance Service Nhs Trust,168,57767.84
DOH,London Ambulance Service NHS Trust,02/11/2012,Cleaning Of Premises,Estate Management,Lakethorne Ltd,18967,61721.18
DOH,London Ambulance Service NHS Trust,02/11/2012,Co Location,Networks Non Pay,Britsh Telecom (Bt) Plc,19543,34514.53
DOH,London Ambulance Service NHS Trust,02/11/2012,Computer Software,Desktop,3tc Software Ltd,19520,62589.6
DOH,London Ambulance Service NHS Trust,02/11/2012,Corporate Overtime,Olympics Pre-Planned Aid,South East Coast Ambulance Nhs Ft,170,92706.47
DOH,London Ambulance Service NHS Trust,02/11/2012,Data Network Rental,Networks Non Pay,Britsh Telecom (Bt) Plc,19545,60881.1
DOH,London Ambulance Service NHS Trust,02/11/2012,Data Network Rental,Networks Non Pay,Bt Global Services,19547,60881.1
DOH,London Ambulance Service NHS Trust,02/11/2012,Private Ambulance Hire,Deputy Director Of Operations,Ast Ambulance Service Ltd,19409,44682.5
DOH,London Ambulance Service NHS Trust,02/11/2012,Private Ambulance Hire,Deputy Director Of Operations,X9 Services,18813,34510
DOH,London Ambulance Service NHS Trust,02/11/2012,Radio Terminal Rentals,Airwave Support,Airwave Solutions Limited,19552,57031.99
DOH,London Ambulance Service NHS Trust,05/11/2012,Contract Labour,Fleet Support Services,Essex Emergency Services 2000 Ltd,19905,44026
DOH,London Ambulance Service NHS Trust,05/11/2012,Private Ambulance Hire,Deputy Director Of Operations,X9 Services,18818,26601.75
DOH,London Ambulance Service NHS Trust,06/11/2012,Ips Maintenance,Fleet Support Services,Baumot Uk Ltd,16307,32004
DOH,London Ambulance Service NHS Trust,06/11/2012,Ips Maintenance,Fleet Support Services,Baumot Uk Ltd,16312,25603.2
DOH,London Ambulance Service NHS Trust,06/11/2012,Ips Maintenance,Fleet Support Services,Baumot Uk Ltd,17945,32004
DOH,London Ambulance Service NHS Trust,07/11/2012,3rd Party - Other Costs,Olympics Pre-Planned Aid,Yorkshire Ambulance Service Nhs Trust,178,107804.74
DOH,London Ambulance Service NHS Trust,07/11/2012,Cac Tools Maintenance,Networks Non Pay,Trustmarque Solutions,16261,65000
DOH,London Ambulance Service NHS Trust,07/11/2012,Data Comms Maintenance,Hart,Excelerate Technology Ltd,20192,62259.49
DOH,London Ambulance Service NHS Trust,07/11/2012,Vehicles,Capital,S.Macneillie & Son Ltd,19736,75065.9
DOH,London Ambulance Service NHS Trust,07/11/2012,Vehicles,Capital,S.Macneillie & Son Ltd,19737,75065.9
DOH,London Ambulance Service NHS Trust,07/11/2012,Vehicles,Capital,S.Macneillie & Son Ltd,19738,75065.9
DOH,London Ambulance Service NHS Trust,07/11/2012,Vehicles,Capital,S.Macneillie & Son Ltd,19739,75065.9
DOH,London Ambulance Service NHS Trust,07/11/2012,Vehicles,Capital,S.Macneillie & Son Ltd,19740,75065.9
DOH,London Ambulance Service NHS Trust,07/11/2012,Vehicles,Capital,S.Macneillie & Son Ltd,19741,75065.9
DOH,London Ambulance Service NHS Trust,07/11/2012,Vehicles,Capital,S.Macneillie & Son Ltd,19742,75065.9
DOH,London Ambulance Service NHS Trust,07/11/2012,Vehicles,Capital,S.Macneillie & Son Ltd,19743,-75065.9
DOH,London Ambulance Service NHS Trust,07/11/2012,Vehicles,Capital,S.Macneillie & Son Ltd,19744,-75065.9
DOH,London Ambulance Service NHS Trust,07/11/2012,Vehicles,Capital,S.Macneillie & Son Ltd,19745,-75065.9
DOH,London Ambulance Service NHS Trust,07/11/2012,Vehicles,Capital,S.Macneillie & Son Ltd,19746,-75065.9
DOH,London Ambulance Service NHS Trust,07/11/2012,Vehicles,Capital,S.Macneillie & Son Ltd,19748,-75065.9
DOH,London Ambulance Service NHS Trust,07/11/2012,Vehicles,Capital,S.Macneillie & Son Ltd,19749,-75065.9
DOH,London Ambulance Service NHS Trust,07/11/2012,Vehicles,Capital,S.Macneillie & Son Ltd,19750,-75065.9
DOH,London Ambulance Service NHS Trust,12/11/2012,Cac Tools Maintenance,Software Development & Support,Northrop Grumman Information Technology,20926,50173.5
DOH,London Ambulance Service NHS Trust,12/11/2012,Private Ambulance Hire,Deputy Director Of Operations,X9 Services,18819,29295
DOH,London Ambulance Service NHS Trust,14/11/2012,Private Ambulance Hire,Deputy Director Of Operations,Thames Ambulance Service Ltd,21499,56857.5
DOH,London Ambulance Service NHS Trust,14/11/2012,Private Ambulance Hire,Deputy Director Of Operations,Thames Ambulance Service Ltd,21500,54064.5
DOH,London Ambulance Service NHS Trust,15/11/2012,A&E Rail Transport,Deputy Director Of Operations,Thames Ambulance Service Ltd,22109,39458.25
DOH,London Ambulance Service NHS Trust,15/11/2012,Cac Tools Maintenance,Software Development & Support,Northgate Information Solutions Ltd,20925,43443.23
DOH,London Ambulance Service NHS Trust,15/11/2012,Cac Tools Maintenance,Software Development & Support,Trustmarque Solutions,22110,89917.1
DOH,London Ambulance Service NHS Trust,15/11/2012,Travel And Accommodation,Olympics Pre-Planned Aid,Metropolitan Police Service,21857,111974.4
DOH,London Ambulance Service NHS Trust,15/11/2012,Vodafone Control Account,Balance Sheet,Vodafone Corporate Limited,21578,114876.43
DOH,London Ambulance Service NHS Trust,19/11/2012,Vehicles,Capital,Telent Technology Services Ltd,22472,36000
DOH,London Ambulance Service NHS Trust,19/11/2012,Vodafone Control Account,Balance Sheet,Vodafone Corporate Limited,21576,119253.53
DOH,London Ambulance Service NHS Trust,21/11/2012,3rd Party - Other Costs,Olympics Pre-Planned Aid,East Midlands Amb Service Nhs T,152,108314.84
DOH,London Ambulance Service NHS Trust,22/11/2012,Private Ambulance Hire,Deputy Director Of Operations,Ast Ambulance Service Ltd,22944,59412.5
DOH,London Ambulance Service NHS Trust,22/11/2012,Private Ambulance Hire,Deputy Director Of Operations,Ast Ambulance Service Ltd,22945,27406.25
DOH,London Ambulance Service NHS Trust,22/11/2012,Private Ambulance Hire,Deputy Director Of Operations,Ast Ambulance Service Ltd,22946,41129.25
DOH,London Ambulance Service NHS Trust,22/11/2012,Private Ambulance Hire,Deputy Director Of Operations,Ast Ambulance Service Ltd,22947,42087.5
DOH,London Ambulance Service NHS Trust,22/11/2012,Private Ambulance Hire,Deputy Director Of Operations,Thames Ambulance Service Ltd,22985,30908.25
DOH,London Ambulance Service NHS Trust,23/11/2012,Fleet Maintenance,Fleet Support Services,Ats Euromaster Ltd,23261,47921.98
DOH,London Ambulance Service NHS Trust,26/11/2012,Fleet Maintenance,Fleet Support Services,Rac Motoring Services,2178,-95035.09
DOH,London Ambulance Service NHS Trust,27/11/2012,3rd Party - Other Costs,Olympics Pre-Planned Aid,East Of England Ambulance Nhs Trust,192,30105.86
DOH,London Ambulance Service NHS Trust,27/11/2012,Fleet Maintenance,Fleet Support Services,Rac Motoring Services,14619,36000
DOH,London Ambulance Service NHS Trust,27/11/2012,Private Ambulance Hire,Deputy Director Of Operations,Mediforce Ltd,23950,25117.5
DOH,London Ambulance Service NHS Trust,28/11/2012,Lease Costs,A&E Ambulances 2004/05,De Lage Landen Leasing Ltd,21467,34959.6
DOH,London Ambulance Service NHS Trust,01/11/2012,Ensign Insurance Debtor,Control Accounts,QBE International Insurance T/A Ensign,1645,228286.5
DOH,London Ambulance Service NHS Trust,19/11/2012,CNST Contributions,Legal Services,NHSLA,2081,71580
DOH,London Ambulance Service NHS Trust,19/11/2012,Liability to 3rd Party Scheme,Legal Services,NHSLA,2081,19448
DOH,London Ambulance Service NHS Trust,19/11/2012,Property Expenses Scheme,Legal Services,NHSLA,2081,2280
DOH,London Ambulance Service NHS Trust,15/11/2012,BP Control Account,Control Accounts,BP Oil,2081,263307.29
DOH,London Ambulance Service NHS Trust,22/11/2012,Child Care Arrangements,Payroll,Busy Bees Childcare Ltd,2112,27151.98
DOH,London Ambulance Service NHS Trust,26/11/2012,BOC Control Account,Control Accounts,British Oxygen,2134,98821.45
DOH,London Ambulance Service NHS Trust,30/11/2012,BP Control Account,Control Accounts,BP Oil,2176,254010.2
